[Event "Titled Tuesday Blitz April 05 Late 2022"]
[White "Papasimakopoulos, Alexandros"]
[Black "Pinheiro, Iung Alicio de O."]
[WhiteFideId "4244125"]
[BlackFideId "2104350"]
[WhiteElo "2340"]
[BlackElo "2561"]
[Result "1-0"]
[Round "05"]
[TimeControl "180+1"]
[Date "2022.04.05"]
[WhiteClock "0:00:10"]
[BlackClock "0:00:10"]

1. d4 {[%clk 0:03:00]}  Nf6 {[%clk 0:02:59]} 2. c4 {[%clk 0:02:59]}  g6 {[%clk 0:02:59]} 3. Nc3 {[%clk 0:02:59]}  d5 {[%clk 0:02:59]} 4. Nf3 {[%clk 0:02:58]}  Bg7 {[%clk 0:02:57]} 5. Qb3 {[%clk 0:02:57]}  dxc4 {[%clk 0:02:55]} 6. Qxc4 {[%clk 0:02:58]}  O-O {[%clk 0:02:55]} 7. e4 {[%clk 0:02:58]}  Nc6 {[%clk 0:02:53]} 8. Be2 {[%clk 0:02:57]}  Bg4 {[%clk 0:02:52]} 9. Be3 {[%clk 0:02:56]}  Bxf3 {[%clk 0:02:50]} 10. gxf3 {[%clk 0:02:57]}  e5 {[%clk 0:02:50]} 11. d5 {[%clk 0:02:54]}  Nd4 {[%clk 0:02:47]} 12. O-O-O {[%clk 0:02:39]}  Nh5 {[%clk 0:02:27]} 13. Kb1 {[%clk 0:02:31]}  c6 {[%clk 0:02:25]} 14. dxc6 {[%clk 0:02:18]}  bxc6 {[%clk 0:02:26]} 15. Rd2 {[%clk 0:02:15]}  Qc8 {[%clk 0:02:04]} 16. f4 {[%clk 0:01:57]}  Nxe2 {[%clk 0:01:50]} 17. Nxe2 {[%clk 0:01:57]}  Qg4 {[%clk 0:01:31]} 18. fxe5 {[%clk 0:01:49]}  Qf3 {[%clk 0:01:27]} 19. Rc1 {[%clk 0:01:37]}  Bxe5 {[%clk 0:01:24]} 20. Qxc6 {[%clk 0:01:35]}  Nf6 {[%clk 0:01:16]} 21. Ng3 {[%clk 0:01:04]}  Ng4 {[%clk 0:01:01]} 22. Bc5 {[%clk 0:00:46]}  Rfc8 {[%clk 0:00:56]} 23. Qd5 {[%clk 0:00:46]}  Rab8 {[%clk 0:00:37]} 24. Bd4 {[%clk 0:00:34]}  Rxc1+ {[%clk 0:00:35]} 25. Kxc1 {[%clk 0:00:35]}  Bf4 {[%clk 0:00:33]} 26. Bc3 {[%clk 0:00:27]}  Nxf2 {[%clk 0:00:20]} 27. Kc2 {[%clk 0:00:19]}  Bxd2 {[%clk 0:00:19]} 28. Qxd2 {[%clk 0:00:20]}  Nxe4 {[%clk 0:00:17]} 29. Nxe4 {[%clk 0:00:11]}  Qxe4+ {[%clk 0:00:18]} 30. Kc1 {[%clk 0:00:10]}  Re8 {[%clk 0:00:16]} 31. Qd6 {[%clk 0:00:02]}  Qe3+ {[%clk 0:00:12]} 32. Kc2 {[%clk 0:00:03]}  Qe2+ {[%clk 0:00:12]} 33. Kc1 {[%clk 0:00:03]}  Qf1+ {[%clk 0:00:08]} 34. Kc2 {[%clk 0:00:04]}  Qf5+ {[%clk 0:00:07]} 35. Kc1 {[%clk 0:00:04]}  Qg5+ {[%clk 0:00:07]} 36. Kc2 {[%clk 0:00:04]}  Qg2+ {[%clk 0:00:05]} 37. Kc1 {[%clk 0:00:03]}  Qf1+ {[%clk 0:00:04]} 38. Kc2 {[%clk 0:00:03]}  Re2+ {[%clk 0:00:04]} 39. Kb3 {[%clk 0:00:03]}  Re8 {[%clk 0:00:03]} 40. Qf6 {[%clk 0:00:02]}  Qb5+ {[%clk 0:00:03]} 41. Kc2 {[%clk 0:00:02]}  Qe2+ {[%clk 0:00:03]} 42. Kb3 {[%clk 0:00:02]}  Qb5+ {[%clk 0:00:03]} 43. Ka3 {[%clk 0:00:02]}  Kf8 {[%clk 0:00:03]} 44. Bb4+ {[%clk 0:00:01]}  Kg8 {[%clk 0:00:03]} 45. Bc3 {[%clk 0:00:02]}  Qa5+ {[%clk 0:00:04]} 46. Bxa5 {[%clk 0:00:02]}  Re3+ {[%clk 0:00:05]} 47. Bc3 {[%clk 0:00:02]}  Kf8 {[%clk 0:00:04]} 48. Qh8+ {[%clk 0:00:03]}  Ke7 {[%clk 0:00:04]} 49. Qf6+ {[%clk 0:00:03]}  Ke8 {[%clk 0:00:03]} 50. Qd4 {[%clk 0:00:04]}  Re6 {[%clk 0:00:04]} 51. Qc5 {[%clk 0:00:04]}  a6 {[%clk 0:00:04]} 52. Kb4 {[%clk 0:00:05]}  Kd7 {[%clk 0:00:05]} 53. Ka5 {[%clk 0:00:05]}  f6 {[%clk 0:00:04]} 54. Bd4 {[%clk 0:00:05]}  Rc6 {[%clk 0:00:05]} 55. Qd5+ {[%clk 0:00:05]}  Rd6 {[%clk 0:00:05]} 56. Qc5 {[%clk 0:00:05]}  Ke6 {[%clk 0:00:06]} 57. b4 {[%clk 0:00:05]}  Rd5 {[%clk 0:00:06]} 58. Kxa6 {[%clk 0:00:05]}  Rxc5 {[%clk 0:00:06]} 59. Bxc5 {[%clk 0:00:06]}  Kd5 {[%clk 0:00:05]} 60. Bg1 {[%clk 0:00:06]}  f5 {[%clk 0:00:04]} 61. b5 {[%clk 0:00:07]}  f4 {[%clk 0:00:04]} 62. b6 {[%clk 0:00:08]}  g5 {[%clk 0:00:03]} 63. b7 {[%clk 0:00:09]}  g4 {[%clk 0:00:04]} 64. b8=Q {[%clk 0:00:09]}  Ke4 {[%clk 0:00:05]} 65. a4 {[%clk 0:00:09]}  Kf3 {[%clk 0:00:06]} 66. Qe5 {[%clk 0:00:08]}  h5 {[%clk 0:00:07]} 67. a5 {[%clk 0:00:08]}  h4 {[%clk 0:00:07]} 68. Kb5 {[%clk 0:00:08]}  g3 {[%clk 0:00:08]} 69. hxg3 {[%clk 0:00:09]}  fxg3 {[%clk 0:00:09]} 70. a6 {[%clk 0:00:09]}  h3 {[%clk 0:00:09]} 71. a7 {[%clk 0:00:09]}  h2 {[%clk 0:00:10]} 72. Bxh2 {[%clk 0:00:10]}  gxh2 {[%clk 0:00:10]} 73. Qxh2 {[%clk 0:00:10]} 1-0


[Site "https://www.chess.com"]

[Event "Titled Tuesday Blitz April 05 Late 2022"]
[White "Paravyan, David"]
[Black "Leiva, Gianmarco"]
[WhiteFideId "4194985"]
[BlackFideId "3804399"]
[WhiteElo "2569"]
[BlackElo "2323"]
[Result "1-0"]
[Round "05"]
[TimeControl "180+1"]
[Date "2022.04.05"]
[WhiteClock "0:00:29"]
[BlackClock "0:00:03"]

1. e4 {[%clk 0:03:00]}  c5 {[%clk 0:03:00]} 2. Nf3 {[%clk 0:03:01]}  d6 {[%clk 0:03:01]} 3. d4 {[%clk 0:03:01]}  cxd4 {[%clk 0:03:02]} 4. Nxd4 {[%clk 0:03:02]}  Nf6 {[%clk 0:03:03]} 5. Nc3 {[%clk 0:03:02]}  a6 {[%clk 0:03:03]} 6. Bg5 {[%clk 0:03:01]}  e6 {[%clk 0:03:03]} 7. f4 {[%clk 0:03:01]}  Be7 {[%clk 0:03:04]} 8. Qf3 {[%clk 0:03:01]}  Qc7 {[%clk 0:03:04]} 9. O-O-O {[%clk 0:02:57]}  Nbd7 {[%clk 0:03:05]} 10. g4 {[%clk 0:02:54]}  h6 {[%clk 0:03:05]} 11. Bxf6 {[%clk 0:02:54]}  Bxf6 {[%clk 0:03:06]} 12. h4 {[%clk 0:02:54]}  Nb6 {[%clk 0:03:03]} 13. Qf2 {[%clk 0:02:47]}  Qc5 {[%clk 0:02:36]} 14. e5 {[%clk 0:01:47]}  dxe5 {[%clk 0:02:17]} 15. Ne4 {[%clk 0:01:46]}  Qc7 {[%clk 0:02:03]} 16. Nxf6+ {[%clk 0:01:15]}  gxf6 {[%clk 0:02:02]} 17. fxe5 {[%clk 0:01:15]}  fxe5 {[%clk 0:02:02]} 18. Qf6 {[%clk 0:01:14]}  Rg8 {[%clk 0:01:37]} 19. Bb5+ {[%clk 0:01:14]}  axb5 {[%clk 0:00:36]} 20. Nxb5 {[%clk 0:01:15]}  Qe7 {[%clk 0:00:36]} 21. Nd6+ {[%clk 0:01:15]}  Kf8 {[%clk 0:00:33]} 22. Qxh6+ {[%clk 0:01:14]}  Rg7 {[%clk 0:00:34]} 23. Rhf1 {[%clk 0:00:37]}  Kg8 {[%clk 0:00:07]} 24. Nxf7 {[%clk 0:00:33]}  Rxf7 {[%clk 0:00:04]} 25. Rxf7 {[%clk 0:00:34]}  Kxf7 {[%clk 0:00:02]} 26. Qh7+ {[%clk 0:00:34]}  Ke8 {[%clk 0:00:01]} 27. Qg8+ {[%clk 0:00:31]}  Qf8 {[%clk 0:00:01]} 28. Rd8+ {[%clk 0:00:31]}  Kxd8 {[%clk 0:00:02]} 29. Qxf8+ {[%clk 0:00:32]}  Kc7 {[%clk 0:00:03]} 30. Qc5+ {[%clk 0:00:29]} 1-0


[Site "https://www.chess.com"]

[Event "Titled Tuesday Blitz April 05 Late 2022"]
[White "Potapova, Margarita"]
[Black "Urbina Perez, Juan Antonio"]
[WhiteFideId "14126869"]
[BlackFideId "2217368"]
[WhiteElo "2607"]
[BlackElo "2464"]
[Result "0-1"]
[Round "05"]
[TimeControl "180+1"]
[Date "2022.04.06"]
[WhiteClock "0:00:04"]
[BlackClock "0:01:04"]

1. c4 {[%clk 0:03:00]}  c6 {[%clk 0:02:46]} 2. d4 {[%clk 0:02:59]}  d5 {[%clk 0:02:47]} 3. Nf3 {[%clk 0:03:00]}  Nf6 {[%clk 0:02:47]} 4. g3 {[%clk 0:03:00]}  Bf5 {[%clk 0:02:46]} 5. Nc3 {[%clk 0:03:00]}  e6 {[%clk 0:02:46]} 6. Nh4 {[%clk 0:03:00]}  Bg6 {[%clk 0:02:45]} 7. Nxg6 {[%clk 0:03:00]}  hxg6 {[%clk 0:02:46]} 8. Qd3 {[%clk 0:03:00]}  Nbd7 {[%clk 0:02:43]} 9. Bg2 {[%clk 0:03:00]}  Bd6 {[%clk 0:02:41]} 10. O-O {[%clk 0:03:00]}  O-O {[%clk 0:02:41]} 11. Rd1 {[%clk 0:03:00]}  Qe7 {[%clk 0:02:40]} 12. e3 {[%clk 0:02:59]}  Rfd8 {[%clk 0:02:38]} 13. Qe2 {[%clk 0:02:58]}  dxc4 {[%clk 0:02:36]} 14. Qxc4 {[%clk 0:02:57]}  e5 {[%clk 0:02:37]} 15. dxe5 {[%clk 0:02:53]}  Nxe5 {[%clk 0:02:37]} 16. Qe2 {[%clk 0:02:53]}  Bb4 {[%clk 0:02:25]} 17. Bd2 {[%clk 0:02:53]}  Rd7 {[%clk 0:02:24]} 18. a3 {[%clk 0:02:52]}  Ba5 {[%clk 0:02:22]} 19. b4 {[%clk 0:02:50]}  Bb6 {[%clk 0:02:18]} 20. Na4 {[%clk 0:02:37]}  Rad8 {[%clk 0:02:18]} 21. Nxb6 {[%clk 0:02:34]}  axb6 {[%clk 0:02:19]} 22. Bc3 {[%clk 0:02:33]}  b5 {[%clk 0:02:13]} 23. Bd4 {[%clk 0:02:32]}  Nc4 {[%clk 0:02:11]} 24. Bh3 {[%clk 0:02:13]}  Rxd4 {[%clk 0:02:03]} 25. Re1 {[%clk 0:01:07]}  Rd2 {[%clk 0:01:58]} 26. Qf3 {[%clk 0:00:59]}  Ne4 {[%clk 0:01:56]} 27. Rf1 {[%clk 0:00:53]}  Ng5 {[%clk 0:01:53]} 28. Qg2 {[%clk 0:00:53]}  Nxh3+ {[%clk 0:01:47]} 29. Qxh3 {[%clk 0:00:54]}  Ne5 {[%clk 0:01:42]} 30. Qg2 {[%clk 0:00:46]}  Qf6 {[%clk 0:01:36]} 31. Qe4 {[%clk 0:00:41]}  Nf3+ {[%clk 0:01:31]} 32. Kg2 {[%clk 0:00:41]}  Ng5 {[%clk 0:01:30]} 33. Qg4 {[%clk 0:00:34]}  Qf5 {[%clk 0:01:24]} 34. Qf4 {[%clk 0:00:15]}  Qxf4 {[%clk 0:01:21]} 35. gxf4 {[%clk 0:00:16]}  Ne4 {[%clk 0:01:20]} 36. Kf3 {[%clk 0:00:16]}  f5 {[%clk 0:01:17]} 37. h4 {[%clk 0:00:16]}  Rc2 {[%clk 0:01:11]} 38. Kg2 {[%clk 0:00:03]}  Rdd2 {[%clk 0:01:08]} 39. Kg1 {[%clk 0:00:03]}  Nxf2 {[%clk 0:01:06]} 40. Rfb1 {[%clk 0:00:04]}  Nh3+ {[%clk 0:01:05]} 41. Kh1 {[%clk 0:00:04]}  Rh2# {[%clk 0:01:04]} 0-1


[Site "https://www.chess.com"]

[Event "Titled Tuesday Blitz April 05 Late 2022"]
[White "Przybylski, Wojciech"]
[Black "Ricaurte Lopez, Juan Carlos"]
[WhiteFideId "1117599"]
[BlackFideId "3600327"]
[WhiteElo "2133"]
[BlackElo "2209"]
[Result "1-0"]
[Round "05"]
[TimeControl "180+1"]
[Date "2022.04.06"]
[WhiteClock "0:00:09"]
[BlackClock "0:00:01"]

1. d4 {[%clk 0:02:59]}  Nf6 {[%clk 0:02:52]} 2. Nf3 {[%clk 0:02:57]}  e6 {[%clk 0:02:52]} 3. c4 {[%clk 0:02:56]}  b6 {[%clk 0:02:51]} 4. Nc3 {[%clk 0:02:56]}  Bb7 {[%clk 0:02:50]} 5. g3 {[%clk 0:02:55]}  Bb4 {[%clk 0:02:42]} 6. Bg2 {[%clk 0:02:54]}  O-O {[%clk 0:02:39]} 7. O-O {[%clk 0:02:53]}  h6 {[%clk 0:02:30]} 8. Bd2 {[%clk 0:02:50]}  d5 {[%clk 0:02:23]} 9. cxd5 {[%clk 0:02:47]}  exd5 {[%clk 0:02:20]} 10. Ne5 {[%clk 0:02:42]}  a6 {[%clk 0:02:15]} 11. a3 {[%clk 0:02:40]}  Bd6 {[%clk 0:02:13]} 12. Qc2 {[%clk 0:02:35]}  c5 {[%clk 0:02:05]} 13. e3 {[%clk 0:02:33]}  Nbd7 {[%clk 0:01:56]} 14. f4 {[%clk 0:02:31]}  Rc8 {[%clk 0:01:54]} 15. Qd3 {[%clk 0:02:28]}  c4 {[%clk 0:01:37]} 16. Qc2 {[%clk 0:02:26]}  b5 {[%clk 0:01:37]} 17. Rae1 {[%clk 0:02:04]}  Qb6 {[%clk 0:01:23]} 18. Bh3 {[%clk 0:02:01]}  Rc7 {[%clk 0:01:17]} 19. g4 {[%clk 0:01:55]}  a5 {[%clk 0:01:09]} 20. Nxd7 {[%clk 0:01:46]}  Nxd7 {[%clk 0:01:06]} 21. Bg2 {[%clk 0:01:38]}  b4 {[%clk 0:00:51]} 22. axb4 {[%clk 0:01:32]}  axb4 {[%clk 0:00:51]} 23. Nxd5 {[%clk 0:01:29]}  Bxd5 {[%clk 0:00:49]} 24. Bxd5 {[%clk 0:01:28]}  c3 {[%clk 0:00:48]} 25. bxc3 {[%clk 0:01:28]}  bxc3 {[%clk 0:00:46]} 26. Bc1 {[%clk 0:01:27]}  Nf6 {[%clk 0:00:21]} 27. Bf3 {[%clk 0:01:26]}  Bb4 {[%clk 0:00:19]} 28. Kh1 {[%clk 0:01:22]}  Re7 {[%clk 0:00:16]} 29. h4 {[%clk 0:01:17]}  Rfe8 {[%clk 0:00:15]} 30. e4 {[%clk 0:01:10]}  Qxd4 {[%clk 0:00:12]} 31. Be3 {[%clk 0:01:10]}  Qc4 {[%clk 0:00:11]} 32. e5 {[%clk 0:01:00]}  Nd5 {[%clk 0:00:10]} 33. Be4 {[%clk 0:00:43]}  Nxe3 {[%clk 0:00:06]} 34. Bh7+ {[%clk 0:00:23]}  Kf8 {[%clk 0:00:03]} 35. Qf2 {[%clk 0:00:08]}  Nxf1 {[%clk 0:00:01]} 36. e6 {[%clk 0:00:09]} 1-0


[Site "https://www.chess.com"]

[Event "Titled Tuesday Blitz April 05 Late 2022"]
[White "Reprintsev, Alexander"]
[Black "Zherebtsova, Alexandra"]
[WhiteFideId "14100541"]
[BlackFideId "24129518"]
[WhiteElo "2563"]
[BlackElo "2393"]
[Result "0-1"]
[Round "05"]
[TimeControl "180+1"]
[Date "2022.04.06"]
[WhiteClock "0:00:33"]
[BlackClock "0:00:04"]

1. e4 {[%clk 0:02:54]}  e5 {[%clk 0:02:59]} 2. f4 {[%clk 0:02:53]}  exf4 {[%clk 0:02:58]} 3. Bc4 {[%clk 0:02:52]}  Ne7 {[%clk 0:02:58]} 4. Nc3 {[%clk 0:02:50]}  c6 {[%clk 0:02:56]} 5. d4 {[%clk 0:02:49]}  d5 {[%clk 0:02:56]} 6. exd5 {[%clk 0:02:48]}  cxd5 {[%clk 0:02:54]} 7. Bb5+ {[%clk 0:02:47]}  Nbc6 {[%clk 0:02:54]} 8. Bxf4 {[%clk 0:02:46]}  a6 {[%clk 0:02:55]} 9. Ba4 {[%clk 0:02:43]}  b5 {[%clk 0:02:45]} 10. Bb3 {[%clk 0:02:43]}  Be6 {[%clk 0:02:42]} 11. Nf3 {[%clk 0:02:38]}  h6 {[%clk 0:02:27]} 12. O-O {[%clk 0:02:36]}  Ng6 {[%clk 0:02:25]} 13. Bg3 {[%clk 0:02:27]}  Be7 {[%clk 0:02:24]} 14. Qd3 {[%clk 0:02:20]}  O-O {[%clk 0:02:11]} 15. Rae1 {[%clk 0:02:19]}  Qd7 {[%clk 0:02:01]} 16. a4 {[%clk 0:02:09]}  b4 {[%clk 0:01:56]} 17. Ne2 {[%clk 0:02:08]}  Na5 {[%clk 0:01:56]} 18. Ne5 {[%clk 0:01:59]}  Nxe5 {[%clk 0:01:55]} 19. Bxe5 {[%clk 0:01:59]}  Nc4 {[%clk 0:01:27]} 20. Bxc4 {[%clk 0:01:55]}  dxc4 {[%clk 0:01:26]} 21. Qg3 {[%clk 0:01:55]}  f6 {[%clk 0:01:26]} 22. Bf4 {[%clk 0:01:56]}  Kh8 {[%clk 0:01:18]} 23. c3 {[%clk 0:01:55]}  Bd5 {[%clk 0:01:12]} 24. Bd2 {[%clk 0:01:52]}  Bd6 {[%clk 0:01:04]} 25. Qh4 {[%clk 0:01:51]}  bxc3 {[%clk 0:00:56]} 26. Nxc3 {[%clk 0:01:51]}  Bb7 {[%clk 0:00:53]} 27. d5 {[%clk 0:01:46]}  Be5 {[%clk 0:00:49]} 28. Rd1 {[%clk 0:01:35]}  Rac8 {[%clk 0:00:43]} 29. Be3 {[%clk 0:01:31]}  Qf7 {[%clk 0:00:39]} 30. Bd4 {[%clk 0:01:27]}  Bb8 {[%clk 0:00:27]} 31. Rfe1 {[%clk 0:01:17]}  Qg6 {[%clk 0:00:26]} 32. Qf2 {[%clk 0:01:14]}  Rce8 {[%clk 0:00:20]} 33. Bc5 {[%clk 0:01:12]}  Rxe1+ {[%clk 0:00:18]} 34. Rxe1 {[%clk 0:01:12]}  Rd8 {[%clk 0:00:18]} 35. Qd4 {[%clk 0:01:07]}  Be5 {[%clk 0:00:18]} 36. Qxc4 {[%clk 0:01:07]}  Bxc3 {[%clk 0:00:17]} 37. Qxc3 {[%clk 0:01:06]}  Bxd5 {[%clk 0:00:17]} 38. Qg3 {[%clk 0:01:06]}  Qc2 {[%clk 0:00:15]} 39. b4 {[%clk 0:00:59]}  Bc6 {[%clk 0:00:14]} 40. a5 {[%clk 0:00:45]}  Rd2 {[%clk 0:00:14]} 41. Bf2 {[%clk 0:00:45]}  Kh7 {[%clk 0:00:14]} 42. Qe3 {[%clk 0:00:45]}  Rd6 {[%clk 0:00:09]} 43. h3 {[%clk 0:00:40]}  f5 {[%clk 0:00:06]} 44. Kh2 {[%clk 0:00:39]}  Be4 {[%clk 0:00:06]} 45. Rc1 {[%clk 0:00:39]}  Qa2 {[%clk 0:00:05]} 46. Rc7 {[%clk 0:00:37]}  Rg6 {[%clk 0:00:05]} 47. Bg3 {[%clk 0:00:36]}  Qa4 {[%clk 0:00:04]} 48. Qc3 {[%clk 0:00:33]}  Qa2 {[%clk 0:00:04]} 0-1


[Site "https://www.chess.com"]

[Event "Titled Tuesday Blitz April 05 Late 2022"]
[White "Sarkar, Justin"]
[Black "Danilov, Vladimir"]
[WhiteFideId "2010011"]
[BlackFideId "1203398"]
[WhiteElo "2038"]
[BlackElo "2227"]
[Result "1/2-1/2"]
[Round "05"]
[TimeControl "180+1"]
[Date "2022.04.06"]
[WhiteClock "0:00:06"]
[BlackClock "0:00:37"]

1. e4 {[%clk 0:03:00]}  e5 {[%clk 0:03:00]} 2. Nc3 {[%clk 0:02:55]}  Nc6 {[%clk 0:03:00]} 3. f4 {[%clk 0:02:54]}  exf4 {[%clk 0:02:56]} 4. d4 {[%clk 0:02:54]}  Bb4 {[%clk 0:02:56]} 5. Bxf4 {[%clk 0:02:52]}  Nf6 {[%clk 0:02:55]} 6. d5 {[%clk 0:02:40]}  Ne7 {[%clk 0:02:55]} 7. Qd4 {[%clk 0:02:38]}  Bxc3+ {[%clk 0:02:54]} 8. bxc3 {[%clk 0:02:21]}  d6 {[%clk 0:02:52]} 9. Nf3 {[%clk 0:02:11]}  h6 {[%clk 0:02:45]} 10. Bd3 {[%clk 0:02:04]}  Ng6 {[%clk 0:02:44]} 11. Bg3 {[%clk 0:01:58]}  O-O {[%clk 0:02:42]} 12. O-O {[%clk 0:01:55]}  Re8 {[%clk 0:02:19]} 13. c4 {[%clk 0:01:48]}  Ng4 {[%clk 0:02:08]} 14. c5 {[%clk 0:01:39]}  N4e5 {[%clk 0:02:04]} 15. Bb5 {[%clk 0:01:11]}  Bd7 {[%clk 0:02:01]} 16. a4 {[%clk 0:01:06]}  a6 {[%clk 0:01:43]} 17. Be2 {[%clk 0:01:00]}  Qe7 {[%clk 0:01:00]} 18. Nxe5 {[%clk 0:00:51]}  Nxe5 {[%clk 0:00:58]} 19. Rab1 {[%clk 0:00:36]}  dxc5 {[%clk 0:00:55]} 20. Qxe5 {[%clk 0:00:34]}  Qxe5 {[%clk 0:00:56]} 21. Bxe5 {[%clk 0:00:34]}  Rxe5 {[%clk 0:00:56]} 22. Rxb7 {[%clk 0:00:34]}  Rxe4 {[%clk 0:00:44]} 23. Bf3 {[%clk 0:00:31]}  Rd4 {[%clk 0:00:40]} 24. Rxc7 {[%clk 0:00:27]}  Bxa4 {[%clk 0:00:40]} 25. Rxc5 {[%clk 0:00:26]}  Rd8 {[%clk 0:00:39]} 26. c3 {[%clk 0:00:21]}  Rd2 {[%clk 0:00:37]} 27. Rf2 {[%clk 0:00:17]}  Rd3 {[%clk 0:00:34]} 28. Ra2 {[%clk 0:00:14]}  Bb3 {[%clk 0:00:32]} 29. Rxa6 {[%clk 0:00:06]}  Bxd5 {[%clk 0:00:31]} 30. Bxd5 {[%clk 0:00:05]}  R3xd5 {[%clk 0:00:31]} 31. Rxd5 {[%clk 0:00:04]}  Rxd5 {[%clk 0:00:32]} 32. Ra2 {[%clk 0:00:03]}  Rd1+ {[%clk 0:00:32]} 33. Kf2 {[%clk 0:00:03]}  Rc1 {[%clk 0:00:33]} 34. Ra8+ {[%clk 0:00:03]}  Kh7 {[%clk 0:00:33]} 35. Rc8 {[%clk 0:00:03]}  Rc2+ {[%clk 0:00:33]} 36. Kg3 {[%clk 0:00:03]}  f5 {[%clk 0:00:34]} 37. h4 {[%clk 0:00:02]}  Kg6 {[%clk 0:00:34]} 38. Rc7 {[%clk 0:00:02]}  Kh5 {[%clk 0:00:33]} 39. Rxg7 {[%clk 0:00:01]}  Rxc3+ {[%clk 0:00:34]} 40. Kh2 {[%clk 0:00:02]}  Kxh4 {[%clk 0:00:32]} 41. Rf7 {[%clk 0:00:02]}  Kg5 {[%clk 0:00:32]} 42. Rg7+ {[%clk 0:00:02]}  Kf6 {[%clk 0:00:33]} 43. Rg8 {[%clk 0:00:02]}  Rc7 {[%clk 0:00:32]} 44. Rh8 {[%clk 0:00:02]}  Kg6 {[%clk 0:00:32]} 45. Rg8+ {[%clk 0:00:02]}  Rg7 {[%clk 0:00:33]} 46. Rf8 {[%clk 0:00:03]}  Kg5 {[%clk 0:00:34]} 47. Re8 {[%clk 0:00:03]}  Kg4 {[%clk 0:00:32]} 48. Rb8 {[%clk 0:00:02]}  h5 {[%clk 0:00:32]} 49. Rb4+ {[%clk 0:00:02]}  f4 {[%clk 0:00:32]} 50. g3 {[%clk 0:00:02]}  Rf7 {[%clk 0:00:32]} 51. Rxf4+ {[%clk 0:00:03]}  Rxf4 {[%clk 0:00:32]} 52. gxf4 {[%clk 0:00:03]}  Kxf4 {[%clk 0:00:33]} 53. Kh3 {[%clk 0:00:04]}  Kg5 {[%clk 0:00:33]} 54. Kg3 {[%clk 0:00:04]}  h4+ {[%clk 0:00:34]} 55. Kh3 {[%clk 0:00:05]}  Kh5 {[%clk 0:00:35]} 56. Kh2 {[%clk 0:00:05]}  Kg4 {[%clk 0:00:35]} 57. Kg2 {[%clk 0:00:06]}  h3+ {[%clk 0:00:36]} 58. Kh2 {[%clk 0:00:06]}  Kf3 {[%clk 0:00:37]} 59. Kxh3 {[%clk 0:00:06]} 1/2-1/2


[Site "https://www.chess.com"]

[Event "Titled Tuesday Blitz April 05 Late 2022"]
[White "Sevian, Samuel"]
[Black "Rasulov, Vugar"]
[WhiteFideId "2040506"]
[BlackFideId "13402390"]
[WhiteElo "2698"]
[BlackElo "2560"]
[Result "1-0"]
[Round "05"]
[TimeControl "180+1"]
[Date "2022.04.05"]
[WhiteClock "0:00:40"]
[BlackClock "0:00:33"]

1. f4 {[%clk 0:02:59]}  d5 {[%clk 0:02:59]} 2. Nf3 {[%clk 0:02:59]}  c5 {[%clk 0:02:59]} 3. g3 {[%clk 0:02:59]}  g6 {[%clk 0:02:59]} 4. Bg2 {[%clk 0:03:00]}  Bg7 {[%clk 0:02:59]} 5. O-O {[%clk 0:03:00]}  Nc6 {[%clk 0:02:59]} 6. d3 {[%clk 0:03:01]}  Nf6 {[%clk 0:02:58]} 7. Nc3 {[%clk 0:03:02]}  d4 {[%clk 0:02:56]} 8. Ne4 {[%clk 0:03:02]}  Nxe4 {[%clk 0:02:54]} 9. dxe4 {[%clk 0:03:03]}  O-O {[%clk 0:02:54]} 10. h3 {[%clk 0:03:03]}  b6 {[%clk 0:02:52]} 11. g4 {[%clk 0:03:01]}  Bb7 {[%clk 0:02:51]} 12. Bd2 {[%clk 0:03:02]}  Qd7 {[%clk 0:02:48]} 13. Qe1 {[%clk 0:03:01]}  c4 {[%clk 0:02:48]} 14. e5 {[%clk 0:02:57]}  d3 {[%clk 0:02:43]} 15. cxd3 {[%clk 0:02:55]}  cxd3 {[%clk 0:02:44]} 16. exd3 {[%clk 0:02:52]}  Qxd3 {[%clk 0:02:43]} 17. Bc3 {[%clk 0:02:52]}  Rad8 {[%clk 0:02:38]} 18. Qh4 {[%clk 0:02:49]}  Qe3+ {[%clk 0:02:24]} 19. Kh1 {[%clk 0:02:49]}  h6 {[%clk 0:02:21]} 20. Qg3 {[%clk 0:02:49]}  b5 {[%clk 0:02:15]} 21. Rae1 {[%clk 0:02:48]}  Qd3 {[%clk 0:02:15]} 22. e6 {[%clk 0:02:20]}  Bxc3 {[%clk 0:02:09]} 23. bxc3 {[%clk 0:02:20]}  Qxc3 {[%clk 0:02:03]} 24. Qh4 {[%clk 0:02:19]}  Kg7 {[%clk 0:01:59]} 25. Rc1 {[%clk 0:02:16]}  Qf6 {[%clk 0:01:47]} 26. Qxf6+ {[%clk 0:02:16]}  Kxf6 {[%clk 0:01:48]} 27. Ne5 {[%clk 0:02:10]}  Na5 {[%clk 0:01:40]} 28. Nd7+ {[%clk 0:01:59]}  Kxe6 {[%clk 0:01:37]} 29. Nxf8+ {[%clk 0:01:23]}  Rxf8 {[%clk 0:01:38]} 30. Bxb7 {[%clk 0:01:22]}  Nxb7 {[%clk 0:01:38]} 31. Rc7 {[%clk 0:01:23]}  Nd6 {[%clk 0:01:36]} 32. Re1+ {[%clk 0:01:23]}  Kf6 {[%clk 0:01:32]} 33. Rexe7 {[%clk 0:01:23]}  a5 {[%clk 0:01:28]} 34. Re5 {[%clk 0:01:23]}  Rd8 {[%clk 0:01:24]} 35. Rc6 {[%clk 0:01:22]}  g5 {[%clk 0:01:19]} 36. Rxb5 {[%clk 0:01:08]}  gxf4 {[%clk 0:01:19]} 37. Rxa5 {[%clk 0:01:03]}  Ke6 {[%clk 0:01:19]} 38. Ra4 {[%clk 0:01:03]}  Kd5 {[%clk 0:01:11]} 39. Rc3 {[%clk 0:00:59]}  Rb8 {[%clk 0:01:09]} 40. Rxf4 {[%clk 0:00:58]}  Rb2 {[%clk 0:01:09]} 41. a4 {[%clk 0:00:53]}  Ra2 {[%clk 0:01:09]} 42. Re3 {[%clk 0:00:51]}  Rb2 {[%clk 0:00:58]} 43. Kg1 {[%clk 0:00:51]}  Ra2 {[%clk 0:00:58]} 44. Kf1 {[%clk 0:00:51]}  Rb2 {[%clk 0:00:56]} 45. Re2 {[%clk 0:00:51]}  Rb3 {[%clk 0:00:53]} 46. Kg2 {[%clk 0:00:51]}  Ra3 {[%clk 0:00:51]} 47. Rf6 {[%clk 0:00:50]}  Nc4 {[%clk 0:00:43]} 48. Rxh6 {[%clk 0:00:48]}  Rxa4 {[%clk 0:00:35]} 49. Rf6 {[%clk 0:00:48]}  Ra3 {[%clk 0:00:33]} 50. Rxf7 {[%clk 0:00:47]}  Ne3+ {[%clk 0:00:34]} 51. Kf2 {[%clk 0:00:43]}  Nd1+ {[%clk 0:00:33]} 52. Ke1 {[%clk 0:00:43]}  Ne3 {[%clk 0:00:33]} 53. Rf3 {[%clk 0:00:40]} 1-0


[Site "https://www.chess.com"]